bitfinex-derivatives/quotes_SOLF0:USTF0_20241025
["timestamp","ask_amount","ask_price","bid_price","bid_amount"]
[1729851873391,8.0102728,173.0,172.94,8.0102728]
[1729851874592,10.9025728,173.0,172.96,2.8928]
[1729851874993,2.8923,173.0,172.96,2.8928]
[1729851875192,8.0102728,172.99,172.96,2.8928]
[1729851876486,8.0102728,172.99,172.95,2.8931]
[1729851876487,2.8927,172.98,172.95,2.8931]
[1729851876687,10.9029728,172.98,172.92,12.3102728]
[1729851877393,10.9029728,172.98,172.94,2.8932]
[1729851879092,2.8927,172.98,172.94,2.8932]
[1729851879390,10.9029728,172.98,172.94,2.8932]
[1729851879593,10.9029728,172.98,172.94,10.9034728]
[1729851882300,10.9027728,172.99,172.95,2.8931]
[1729851884995,10.9028728,172.98,172.95,2.8931]
[1729851895416,2.8926,172.98,172.95,2.8931]
[1729851895615,10.9028728,172.98,172.95,2.8931]
[1729851896213,10.9028728,172.98,172.91,4.3]
[1729851896214,8.0102728,172.98,172.91,4.3]
[1729851896416,10.9030728,172.97,172.94,2.8933]
[1729851897017,8.0102728,172.97,172.94,2.8933]
[1729851897209,10.9029728,172.98,172.94,2.8933]
[1729851898218,10.9029728,172.98,172.93,8.0102728]
[1729851898408,10.9029728,172.98,172.95,2.8931]
[1729851900513,8.0102728,172.97,172.95,2.8931]
[1729851905925,8.0102728,172.96,172.88,1.1912]
[1729851906126,4.3,173.01,172.89,13.75773776]
[1729851906127,8.0102728,172.94,172.89,13.75773776]
[1729851906426,8.0102728,172.94,172.89,12.3102728]
[1729851906828,8.0102728,172.94,172.92,2.8936]
[1729851910722,2.893,172.96,172.92,2.8936]
[1729851910929,8.0102728,172.96,172.91,8.0102728]
[1729851911130,4.3,172.97,172.92,8.0102728]
[1729851911316,8.0102728,172.98,172.92,8.0102728]
[1729851911519,8.0102728,172.97,172.89,4.3]
[1729851911723,8.0102728,172.96,172.9,14.568585]
[1729851911926,8.0102728,172.96,172.94,2.8932]
[1729851912627,8.0102728,172.97,172.94,2.8932]
[1729851917124,2.8927,172.98,172.94,2.8932]
[1729851917336,8.0102728,172.97,172.94,2.8932]
[1729851917830,2.4789,172.99,172.92,8.0102728]
[1729851918028,2.4789,172.99,172.93,1.44736165]
[1729851918225,2.4789,172.99,172.92,8.0102728]
[1729851918430,8.0102728,172.97,172.93,1.4473241]
[1729851918733,8.0102728,172.97,172.92,8.0102728]
[1729851918921,8.0102728,172.97,172.93,1.44732598]
[1729851919122,8.0102728,172.97,172.94,2.8932]
[1729851919531,8.0102728,172.97,172.92,8.0102728]
[1729851919832,8.0102728,172.97,172.93,6.56621061]
[1729851920132,8.0102728,172.97,172.92,8.0102728]
[1729851920328,8.0102728,172.97,172.93,5.11908785]
[1729851920532,8.0102728,172.97,172.92,8.0102728]
[1729851920733,8.0102728,172.97,172.93,6.56641266]
[1729851920923,8.0102728,172.97,172.92,8.0102728]
[1729851921126,8.0102728,172.97,172.93,6.56638291]
[1729851921433,8.0102728,172.97,172.94,2.8933]
[1729851921633,8.0102728,172.97,172.92,8.0102728]
[1729851921941,8.0102728,172.97,172.93,6.56666717]
[1729851922127,8.0102728,172.97,172.92,8.0102728]
[1729851922328,8.0102728,172.97,172.93,6.56679457]
[1729851922633,8.0102728,172.97,172.94,2.8932]
[1729851923533,8.0102728,172.96,172.94,2.8932]
[1729851923833,8.0102728,172.95,172.94,2.8932]
[1729851924834,2.4789,172.99,172.95,2.893]
[1729851924835,8.0102728,172.96,172.95,2.893]
[1729851925222,8.0102728,172.99,172.94,8.0102728]
[1729851925422,8.0102728,172.99,172.97,2.8927]
[1729851925624,2.8923,173.01,172.95,8.0102728]
[1729851925834,8.0102728,173.0,172.95,8.0102728]
[1729851926134,8.0102728,173.0,172.97,2.8927]
[1729851926322,2.892,173.02,172.95,8.0102728]
[1729851926525,4.3,173.03,172.99,2.8924]
[1729851926731,8.0102728,173.02,172.97,8.0102728]
[1729851927626,7.1918,173.03,172.97,8.0102728]
[1729851927828,3.5769,173.09,172.98,8.0102728]
[1729851928137,8.0102728,173.06,173.0,8.0102728]
[1729851928529,2.8915,173.05,173.01,2.892]
[1729851928731,7.24916287,173.08,173.0,8.0102728]
[1729851928932,8.0102728,173.06,173.0,8.0102728]
[1729851929139,8.0102728,173.06,173.01,1.44680279]
[1729851929335,8.0102728,173.06,173.0,8.0102728]
[1729851929524,10.9016728,173.06,173.02,2.8919]
[1729851930739,7.191,173.08,173.03,2.8917]
[1729851930937,8.0102728,173.06,173.01,8.0102728]
[1729851931532,8.0102728,173.06,173.04,2.8916]
[1729851931728,2.8908,173.09,173.03,8.0102728]
[1729851932038,8.0102728,173.08,173.03,8.0102728]
[1729851932234,8.0102728,173.08,173.04,2.8915]
[1729851932428,4.28,173.11,173.03,12.2902728]
[1729851932737,8.0102728,173.09,173.05,2.8914]
[1729851933632,8.0102728,173.09,173.04,8.0102728]
[1729851933927,8.0102728,173.09,173.06,2.8913]
[1729851936540,8.0102728,173.07,172.99,5.10147548]
[1729851936736,8.0102728,173.07,173.01,8.0102728]
[1729851937141,8.0102728,173.07,173.03,2.8917]
[1729851937331,8.0102728,173.07,173.01,8.0102728]
[1729851937532,2.8907,173.1,173.05,8.0102728]
[1729851937732,10.9009728,173.1,173.05,8.0102728]
[1729851937934,2.8907,173.1,173.06,2.8912]
[1729851938134,8.0102728,173.1,173.05,8.0102728]
[1729851938738,8.0102728,173.1,173.07,2.8911]
[1729851939340,8.0102728,173.09,173.07,2.8911]
[1729851940548,1.3005,173.12,173.06,8.0102728]
[1729851940747,10.9005728,173.12,173.08,2.8909]
[1729851940949,17.4,173.34,173.11,8.0102728]
[1729851941251,8.0102728,173.21,173.16,2.8895]
[1729851941549,8.0102728,173.21,173.17,4.28]
[1729851942250,6.7597,173.29,173.12,1.2806]
[1729851942251,2.4797,173.29,173.12,1.2806]
[1729851942544,8.0102728,173.22,173.16,8.0102728]
[1729851942740,8.0102728,173.22,173.18,2.8892]
[1729851943143,6.7597,173.29,173.18,8.0102728]
[1729851943447,8.0102728,173.23,173.19,4.28]
[1729851943647,8.0102728,173.21,173.19,4.28]
[1729851944341,8.0102728,173.21,173.17,8.0102728]
[1729851944745,8.0102728,173.2,173.18,4.28]
[1729851944943,8.0102728,173.2,173.17,4.28]
[1729851945351,8.0102728,173.2,173.17,2.8893]
[1729851945542,8.0102728,173.2,173.17,7.1693]
[1729851945744,8.0102728,173.2,173.17,4.28]
[1729851945940,8.0102728,173.19,173.17,4.28]
[1729851946247,8.0102728,173.19,173.16,2.8895]
[1729851948044,8.0102728,173.19,173.17,2.8894]
[1729851948743,8.0102728,173.19,173.16,2.8895]
[1729851950944,8.0102728,173.19,173.17,2.8894]
[1729851954151,8.0102728,173.19,173.18,2.8893]
[1729851954742,2.8886,173.22,173.18,2.8893]
[1729851954956,8.0102728,173.2,173.18,2.8893]
[1729851955450,8.0102728,173.2,173.16,4.28]
[1729851955451,2.8883,173.24,173.2,2.8888]
[1729851955656,8.0102728,173.22,173.2,2.8888]
[1729851956750,8.0102728,173.22,173.17,8.0102728]
[1729851957456,8.0102728,173.22,173.2,2.8889]
[1729851957660,8.0102728,173.22,173.17,8.0102728]
[1729851958354,8.0102728,173.22,173.21,2.8888]
[1729851960153,8.0102728,173.22,173.12,1.2806]
[1729851960366,8.0102728,173.2,173.18,2.8891]
[1729851960856,8.0102728,173.2,173.16,2.8895]
[1729851961161,8.0102728,173.2,173.15,8.0102728]
[1729851961357,8.0102728,173.2,173.16,4.28]
[1729851961861,8.0102728,173.2,173.18,2.8892]
[1729851962656,2.8885,173.23,173.18,2.8892]
[1729851962860,8.0102728,173.21,173.16,12.2902728]
[1729851963167,8.0102728,173.22,173.19,2.8891]
[1729851964463,8.0102728,173.22,173.2,2.8889]
[1729851965463,8.0102728,173.22,173.17,8.0102728]
[1729851965662,355.4,173.33,173.16,4.28]
[1729851965663,2.8878,173.27,173.23,2.8883]
[1729851965857,2.4797,173.29,173.22,8.0102728]
[1729851966158,8.0102728,173.28,173.23,8.0102728]
[1729851966557,8.0102728,173.28,173.25,2.888]
[1729851966756,2.4797,173.29,173.25,2.888]
[1729851966757,8.0102728,173.27,173.25,2.888]
[1729851967252,8.0102728,173.26,173.23,2.8883]
[1729851967465,8.0102728,173.26,173.21,4.28]
[1729851968159,10.8982728,173.26,173.22,2.8885]
[1729851968564,5.3673,173.29,173.24,2.8882]
[1729851968756,8.0102728,173.26,173.21,4.28]
[1729851969266,8.0102728,173.26,173.23,2.8884]
[1729851970559,2.4797,173.29,173.23,2.8884]
[1729851970762,2.4797,173.29,173.21,4.28]
[1729851970763,8.0102728,173.27,173.22,8.0102728]
[1729851971566,8.0102728,173.27,173.24,2.8882]
[1729851971763,337.0,173.38,173.25,8.0102728]
[1729851971959,8.0102728,173.34,173.29,8.0102728]
[1729851972165,8.0083,173.37,173.29,8.0102728]
[1729851972365,10.8968728,173.35,173.3,10.8975728]
[1729851972561,8.0102728,173.34,173.3,10.8975728]
[1729851973066,2.8865,173.35,173.31,2.887]
[1729851973267,10.8967728,173.35,173.31,2.887]
[1729851973668,10.8967728,173.35,173.3,8.0102728]
[1729851973669,8.0102728,173.35,173.3,8.0102728]
[1729851973975,8.0102728,173.35,173.32,2.8869]
[1729851974270,8.0102728,173.35,173.3,8.0102728]
[1729851974469,8.0102728,173.35,173.31,2.8871]
[1729851976068,10.8967728,173.35,173.31,2.8871]
[1729851976270,10.8967728,173.35,173.3,2.8873]
[1729851976874,8.0102728,173.33,173.3,4.28]
[1729851977574,10.8970728,173.33,173.3,4.28]
[1729851978374,10.8970728,173.33,173.29,2.8874]
[1729851979366,8.0102728,173.31,173.27,8.0102728]
[1729851979568,3.7283,173.37,173.22,1.2207]
[1729851979569,8.0102728,173.28,173.22,1.2207]
[1729851979875,8.0102728,173.28,173.23,4.3]
[1729851980065,8.0102728,173.27,173.24,2.8882]
[1729851980272,2.8876,173.28,173.24,2.8882]
[1729851980971,2.8875,173.29,173.25,2.8881]
[1729851982469,2.8875,173.29,173.23,4.3]
[1729851982675,2.8875,173.29,173.25,2.8881]
[1729851982972,12.47988446,173.31,173.23,4.3]
[1729851984375,2.8875,173.29,173.25,2.888]
[1729851987865,12.47988446,173.31,173.23,4.3]
[1729851988070,2.8877,173.28,173.24,2.8882]
[1729851990168,12.47988446,173.3,173.23,4.3]
[1729851990374,2.8878,173.27,173.23,7.1884]
[1729851991074,4.3,173.35,173.23,4.3]
[1729851991374,12.47988446,173.3,173.23,4.3]
[1729851991976,2.8875,173.29,173.23,4.3]
[1729851992475,2.8875,173.29,173.25,2.888]
[1729851993278,2.8875,173.29,173.23,4.3]
[1729851993279,7.17469976,173.35,173.23,4.3]
[1729851993477,12.47988446,173.32,173.26,2.8879]
[1729851994177,12.47988446,173.32,173.25,2.8881]
[1729851994865,2.8873,173.3,173.25,2.8881]
[1729851995671,2.8875,173.29,173.25,2.8881]
[1729851998071,12.47988446,173.32,173.23,4.3]
[1729851998072,2.8874,173.3,173.24,2.8882]
[1729851998274,1.1839,173.31,173.24,2.8882]
[1729851998477,12.47988446,173.3,173.23,4.3]
[1729851998776,2.8876,173.28,173.23,7.1884]
[1729851999277,2.8878,173.27,173.23,7.1884]
[1729851999579,2.8878,173.27,173.24,2.8883]
[1729852000170,2.8878,173.27,173.23,2.8885]
[1729852000374,7.98896238,173.25,173.23,2.8885]
[1729852000979,7.98896238,173.24,173.19,4.3]
[1729852001179,7.98896238,173.25,173.19,12.28896238]
[1729852001775,7.98896238,173.25,173.22,2.8885]
[1729852001980,7.98896238,173.25,173.21,7.98896238]
[1729852002183,7.98896238,173.25,173.22,2.8886]
[1729852005775,7.98896238,173.25,173.19,12.28896238]
[1729852005983,10.87716238,173.25,173.21,2.8888]
[1729852006385,7.98896238,173.25,173.19,12.28896238]
[1729852006582,7.98896238,173.25,173.2,2.8888]
[1729852006784,7.98896238,173.25,173.19,12.28896238]
[1729852007180,7.98896238,173.25,173.17,1.2472]
[1729852007384,7.98896238,173.22,173.16,1.1969]
[1729852007595,7.98896238,173.22,173.18,1.44491182]
[1729852007885,10.87756238,173.22,173.18,2.8892]
[1729852008491,7.98896238,173.21,173.18,2.8892]
[1729852008688,2.90616367,173.24,173.16,4.28]
[1729852008689,7.98896238,173.19,173.16,4.28]
[1729852008891,7.98896238,173.19,173.16,7.1695]
[1729852008892,10.87806238,173.19,173.16,7.1695]
[1729852009090,10.87806238,173.19,173.16,4.28]
[1729852009280,10.87806238,173.19,173.14,13.53016238]
[1729852009485,10.87806238,173.19,173.15,4.3348098]
[1729852009686,7.98896238,173.18,173.16,1.4452098]
[1729852009881,7.98896238,173.18,173.15,2.8897]
[1729852010087,7.98896238,173.18,173.14,12.26896238]
[1729852010293,7.98896238,173.19,173.15,9.43422732]
[1729852010486,7.98896238,173.19,173.17,2.8893]
[1729852014990,6.7384,173.23,173.15,7.98896238]
[1729852014991,2.4584,173.23,173.15,7.98896238]
[1729852015190,2.4584,173.23,173.21,2.8888]
[1729852015191,7.98896238,173.23,173.21,2.8888]
[1729852015791,4.28,173.28,173.19,7.98896238]
[1729852016087,2.5448,173.29,173.19,7.98896238]
[1729852016287,7.98896238,173.25,173.19,7.98896238]
[1729852016504,7.98896238,173.25,173.21,7.98896238]
[1729852016704,7.98896238,173.27,173.21,7.98896238]
[1729852016900,7.98896238,173.27,173.24,2.8882]
[1729852017098,7.98896238,173.27,173.22,4.28]
[1729852017289,2.5448,173.29,173.22,12.26896238]
[1729852017598,7.98896238,173.28,173.22,12.26896238]
[1729852018501,2.8871,173.31,173.23,7.98896238]
[1729852018699,7.98896238,173.3,173.26,2.8878]
[1729852019390,7.98896238,173.28,173.26,2.8878]
[1729852020699,7.98896238,173.27,173.24,2.8883]
[1729852020998,7.98896238,173.25,173.21,4.28]
[1729852021195,7.98896238,173.25,173.2,4.28]
[1729852021391,7.98896238,173.25,173.23,2.8885]
[1729852021997,4.28,173.29,173.23,2.8885]
[1729852022200,7.98896238,173.25,173.23,2.8885]
[1729852023201,7.98896238,173.25,173.21,7.98896238]
[1729852023395,7.98896238,173.29,173.25,2.888]
[1729852023800,7.98896238,173.29,173.23,7.98896238]
[1729852023997,7.98896238,173.29,173.25,2.888]
[1729852024398,7.98896238,173.29,173.23,7.98896238]
[1729852024598,7.98896238,173.29,173.25,2.888]
[1729852026404,7.98896238,173.29,173.23,7.98896238]
[1729852026610,7.98896238,173.29,173.24,1.44460816]
[1729852026803,7.98896238,173.29,173.26,2.8879]
[1729852028202,2.8874,173.3,173.26,2.8879]
[1729852028411,7.98896238,173.28,173.26,2.8879]
[1729852029898,2.8875,173.29,173.25,2.888]
[1729852030102,7.98896238,173.28,173.25,2.888]
[1729852030307,7.98896238,173.28,173.23,7.98896238]
[1729852030503,7.98896238,173.28,173.25,2.8881]
[1729852031303,7.98896238,173.28,173.26,1.44458057]
[1729852031500,7.98896238,173.28,173.25,2.8881]
[1729852031710,7.98896238,173.28,173.26,1.44456389]
[1729852031905,7.98896238,173.28,173.26,2.8879]
[1729852032704,2.8875,173.29,173.26,2.8879]
[1729852033009,10.87646238,173.29,173.26,2.8879]
[1729852033204,7.98896238,173.29,173.26,2.8879]
[1729852033603,5.5776,173.34,173.28,2.8876]
[1729852033803,7.98896238,173.31,173.28,2.8876]
[1729852034006,7.98896238,173.31,173.25,7.98896238]
[1729852034205,7.98896238,173.31,173.29,2.8874]
[1729852034509,2.8868,173.33,173.27,7.98896238]
[1729852034701,7.98896238,173.32,173.29,2.8873]
[1729852035312,7.98896238,173.31,173.29,2.8873]
[1729852036105,2.8868,173.33,173.29,2.8873]
[1729852036310,4.28,173.35,173.27,7.98896238]
[1729852036611,7.98896238,173.31,173.28,1.44435121]
[1729852036913,7.98896238,173.32,173.3,2.8873]
[1729852037111,7.1665,173.35,173.3,2.8873]
[1729852037307,7.98896238,173.32,173.3,2.8873]
[1729852038109,7.98896238,173.31,173.3,2.8873]
[1729852039699,7.98896238,173.31,173.28,2.8875]
[1729852039900,7.98896238,173.3,173.28,2.8875]
[1729852040999,7.98896238,173.3,173.25,7.98896238]
[1729852041199,7.98896238,173.3,173.27,2.8878]
[1729852041507,8.46442116,173.36,173.24,4.28]
[1729852041508,7.98896238,173.28,173.24,4.28]
[1729852041711,7.98896238,173.27,173.25,3.75583757]
[1729852041906,7.98896238,173.27,173.26,1.44455291]
[1729852042411,7.98896238,173.27,173.26,4.33245291]
[1729852042599,8.46442116,173.36,173.26,4.33245291]
[1729852042808,7.98896238,173.28,173.27,1.44450482]
[1729852043412,7.98896238,173.28,173.26,2.8879]
[1729852044106,7.98896238,173.28,173.27,1.44453931]
[1729852045105,7.98896238,173.28,173.25,2.8881]
[1729852045414,7.98896238,173.28,173.26,1.44453931]
[1729852045712,7.98896238,173.28,173.23,5.5009]
[1729852045902,7.98896238,173.28,173.25,2.888]
[1729852046106,7.98896238,173.28,173.26,1.44455022]
[1729852046312,2.8873,173.3,173.23,5.5009]
[1729852046513,7.98896238,173.28,173.24,3.75583808]
[1729852046718,7.98896238,173.28,173.25,3.75583808]
[1729852046905,7.98896238,173.28,173.26,1.44455311]
[1729852047106,7.98896238,173.28,173.27,1.44455311]
[1729852048212,7.98896238,173.28,173.26,2.8879]
[1729852048507,7.98896238,173.28,173.27,1.44455326]
[1729852049414,7.98896238,173.28,173.26,2.8878]
[1729852054008,2.8873,173.3,173.26,2.8878]
[1729852054223,7.98896238,173.27,173.26,2.8878]
[1729852054417,7.98896238,173.27,173.26,4.33238358]
[1729852055216,7.98896238,173.27,173.26,1.44458358]
[1729852055907,7.98896238,173.27,173.26,2.888]
[1729852056112,1.2695,173.31,173.26,1.44459191]
[1729852056320,7.98896238,173.27,173.21,4.28]
[1729852056616,7.98896238,173.27,173.24,2.8881]
[1729852056817,7.98896238,173.27,173.25,1.4446262]
[1729852057019,7.98896238,173.27,173.24,2.8881]
[1729852057209,7.98896238,173.27,173.25,1.44462737]
[1729852057411,7.98896238,173.27,173.24,2.8881]
[1729852057612,7.98896238,173.27,173.25,1.44464807]
[1729852057825,7.98896238,173.27,173.24,2.8881]
[1729852058115,7.98896238,173.27,173.25,1.4446469]
[1729852058316,7.98896238,173.27,173.24,2.8881]
[1729852058521,10.87716238,173.25,173.22,2.8886]
[1729852058724,7.98896238,173.23,173.22,2.8886]
[1729852059025,7.98896238,173.23,173.22,1.44486267]
[1729852059419,7.98896238,173.23,173.19,2.889]
[1729852059620,7.98896238,173.2,173.19,2.889]
[1729852059814,7.98896238,173.2,173.19,4.33397287]
[1729852060226,7.98896238,173.2,173.19,6.64592946]
[1729852066823,7.98896238,173.2,173.19,6.64592861]
[1729852067028,7.98896238,173.21,173.2,2.8889]
[1729852067238,7.98896238,173.21,173.2,4.33387254]
[1729852068229,7.98896238,173.21,173.2,1.44497254]
[1729852069525,7.98896238,173.21,173.2,4.33397254]
[1729852070121,1.2287,173.3,173.2,1.44497254]
[1729852070327,7.98896238,173.23,173.21,1.44497254]
[1729852070530,7.98896238,173.23,173.22,1.44497254]
[1729852071134,2.888,173.26,173.22,4.33347254]
[1729852071330,7.98896238,173.23,173.22,2.8885]
[1729852071530,7.98896238,173.23,173.22,4.3332985]
[1729852075531,2.8878,173.27,173.23,2.8883]
[1729852075734,7.98896238,173.24,173.23,2.8883]
[1729852075935,7.98896238,173.24,173.23,4.3331042]
[1729852076531,7.98896238,173.24,173.23,2.8883]
[1729852076738,7.98896238,173.24,173.23,4.3331062]
[1729852077428,7.98896238,173.24,173.23,2.8883]
[1729852077736,7.98896238,173.24,173.23,4.3331614]
[1729852078823,7.98896238,173.24,173.23,1.4448614]
[1729852079030,7.98896238,173.24,173.18,3.92454657]
[1729852079226,7.98896238,173.24,173.18,5.0903045]
[1729852079227,7.98896238,173.19,173.18,5.0903045]
[1729852079428,7.98896238,173.19,173.18,7.40439826]
[1729852079636,7.98896238,173.19,173.18,2.31202776]
[1729852080337,7.98896238,173.19,173.18,5.20132776]
[1729852080834,7.98896238,173.19,173.18,2.31202776]
[1729852081228,7.98896238,173.19,173.18,7.40670567]
[1729852081427,7.98896238,173.19,173.18,2.31202776]
[1729852082033,7.98896238,173.19,173.18,10.29526959]
[1729852083233,7.98896238,173.19,173.18,10.29533159]
[1729852083737,7.98896238,173.19,173.18,7.40603159]
[1729852084342,7.21571082,173.24,173.18,7.40603159]
[1729852084539,7.98896238,173.19,173.15,1.2779]
[1729852084735,2.8885,173.23,173.19,2.889]
[1729852085043,4.28,173.25,173.2,7.40364949]
[1729852085239,7.98896238,173.21,173.2,2.889]
[1729852085435,7.98896238,173.21,173.2,10.29251401]
[1729852086728,7.98896238,173.21,173.2,2.889]
[1729852086933,7.98896238,173.21,173.2,10.29187142]
[1729852088444,7.98896238,173.21,173.2,7.40287142]
[1729852088741,7.98896238,173.21,173.2,5.0921282]
[1729852088931,7.98896238,173.21,173.2,7.40415773]
[1729852089943,7.1683,173.25,173.21,2.8886]
[1729852090149,7.98896238,173.22,173.21,2.8886]
[1729852090638,7.98896238,173.22,173.21,5.20044326]
[1729852090836,7.98896238,173.22,173.21,10.29111429]
[1729852091233,7.98896238,173.22,173.21,11.73604872]
[1729852091730,7.98896238,173.22,173.21,8.84744872]
[1729852093142,7.98896238,173.22,173.21,11.73624872]
[1729852094038,7.98896238,173.22,173.21,2.8888]
[1729852094235,7.98896238,173.22,173.21,9.42491565]
[1729852094441,7.98896238,173.22,173.21,11.73676554]
[1729852095732,7.98896238,173.24,173.21,12.77333822]
[1729852095935,7.98896238,173.24,173.22,11.73656554]
[1729852096147,7.98896238,173.24,173.23,1.44490618]
[1729852097739,7.98896238,173.24,173.18,7.98896238]
[1729852097740,7.98896238,173.24,173.22,2.8885]
[1729852097946,7.98896238,173.24,173.23,1.44482324]
[1729852098741,2.8877,173.28,173.24,2.8882]
[1729852098948,2.8877,173.28,173.25,1.44482324]
[1729852099147,7.98896238,173.26,173.24,2.8882]
[1729852099339,7.98896238,173.26,173.25,1.4447862]
[1729852105147,7.98896238,173.26,173.24,2.8881]
[1729852105341,7.98896238,173.26,173.25,1.44476594]
[1729852105548,10.87696238,173.26,173.25,1.44476594]
[1729852107257,2.888,173.26,173.25,1.44476594]
[1729852107447,10.87696238,173.26,173.25,1.44476594]
[1729852108853,10.87696238,173.26,173.22,2.8886]
[1729852109156,7.98896238,173.24,173.23,3.75653961]
[1729852110161,7.98896238,173.24,173.23,8.85348972]
[1729852110352,7.98896238,173.24,173.23,3.75653961]
[1729852111953,7.98896238,173.24,173.23,8.85281467]
[1729852112451,7.98896238,173.24,173.23,5.09627506]
[1729852112652,7.98896238,173.24,173.23,8.85281196]
[1729852113559,7.98896238,173.24,173.23,3.7565369]
[1729852114265,7.98896238,173.24,173.23,8.85436068]
[1729852115463,7.98896238,173.24,173.23,3.7565369]
[1729852116168,7.98896238,173.24,173.23,3.75653995]
[1729852117253,7.98896238,173.24,173.23,8.85510324]
[1729852117452,7.98896238,173.24,173.23,3.75653995]
[1729852118458,7.98896238,173.24,173.23,8.85636602]
[1729852119459,7.98896238,173.24,173.23,2.8885]
[1729852119654,5.4897,173.29,173.23,1.444795]
[1729852119851,7.98896238,173.26,173.24,3.75646701]
[1729852120056,7.98896238,173.26,173.25,1.444795]
[1729852121261,7.98896238,173.26,173.25,3.75643689]
[1729852121462,7.98896238,173.26,173.25,8.85636725]
[1729852122155,7.98896238,173.28,173.25,8.85636725]
[1729852122353,7.98896238,173.28,173.26,3.75643689]
[1729852122660,7.98896238,173.28,173.27,1.444795]
[1729852125951,5.5087,173.3,173.27,1.444795]
[1729852126163,7.98896238,173.28,173.22,7.98896238]
[1729852126464,7.98896238,173.31,173.27,7.98896238]
[1729852126662,7.98896238,173.31,173.28,3.75597621]
[1729852126856,7.98896238,173.31,173.29,1.44460623]
[1729852127052,7.98896238,173.31,173.3,1.44460623]
[1729852130067,7.98896238,173.31,173.29,2.8873]
[1729852130255,7.98896238,173.31,173.3,1.44439615]
[1729852131068,2.8868,173.33,173.3,1.44439615]
[1729852131366,2.8868,173.33,173.31,1.44439615]
[1729852131672,2.8868,173.33,173.32,1.44439615]
[1729852131871,2.8868,173.33,173.29,2.8873]
[1729852132071,7.98896238,173.31,173.3,1.44438642]
[1729852132869,2.8868,173.33,173.3,1.44438642]
[1729852133166,7.98896238,173.31,173.29,2.8873]
[1729852133365,7.98896238,173.31,173.3,1.44439498]
[1729852133866,7.98896238,173.31,173.3,1.44439615]
[1729852137072,7.98896238,173.31,173.29,2.8873]
[1729852137267,7.98896238,173.31,173.3,1.4444333]
[1729852137538,7.98896238,173.31,173.29,2.8873]
[1729852137693,7.98896238,173.31,173.3,1.4444333]
[1729852138604,7.98896238,173.31,173.29,2.8873]
[1729852139604,7.98896238,173.31,173.3,1.44440688]
[1729852139909,7.98896238,173.31,173.29,2.8873]
[1729852140213,2.8868,173.33,173.3,1.44440688]
[1729852140399,7.98896238,173.31,173.29,2.8873]
[1729852141603,7.98896238,173.31,173.24,5.5794]
[1729852141909,4.28,173.34,173.27,2.8877]
[1729852141910,7.98896238,173.29,173.27,2.8877]
[1729852142102,7.98896238,173.29,173.28,1.4444195]
[1729852142300,2.8871,173.32,173.28,1.4444195]
[1729852142503,7.98896238,173.3,173.29,1.4444195]
[1729852143703,7.98896238,173.3,173.29,4.3319195]
[1729852144095,2.8868,173.33,173.29,4.3319195]
[1729852144305,4.28,173.35,173.3,4.3316195]
[1729852144500,7.98896238,173.33,173.27,1.236]
[1729852144804,2.8862,173.37,173.32,2.887]
[1729852144998,7.98896238,173.34,173.32,2.887]
[1729852145193,5.41159516,173.39,173.31,7.98896238]
[1729852145387,7.98896238,173.36,173.31,7.98896238]
[1729852145570,4.19069516,173.39,173.32,1.44414548]
[1729852145771,7.98896238,173.36,173.33,1.44414548]
[1729852145975,7.98896238,173.36,173.31,7.98896238]
[1729852146179,7.98896238,173.36,173.34,2.8865]
[1729852146786,7.98896238,173.36,173.34,2.8866]
[1729852147016,7.98896238,173.36,173.28,7.10407198]
[1729852147210,7.1657,173.4,173.35,2.8863]
[1729852147485,7.98896238,173.37,173.32,4.28]
[1729852147687,7.98896238,173.37,173.33,1.44406542]
[1729852147884,4.28,173.4,173.32,12.26896238]
[1729852148191,4.28,173.4,173.33,1.4440655]
[1729852148384,7.98896238,173.37,173.35,2.8863]
[1729852148782,7.98896238,173.36,173.32,4.28]
[1729852148987,7.98896238,173.36,173.34,2.8866]
[1729852149483,7.98896238,173.35,173.34,2.8866]
[1729852149990,7.98896238,173.35,173.29,4.28]
[1729852150192,7.98896238,173.35,173.28,3.91426192]
[1729852150193,7.98896238,173.31,173.3,1.44415862]
[1729852150415,7.98896238,173.31,173.28,4.28]
[1729852150689,7.98896238,173.31,173.29,1.44417674]
[1729852150988,7.98896238,173.31,173.28,4.28]
[1729852150989,7.98896238,173.31,173.3,1.44417674]
[1729852151190,7.98896238,173.31,173.3,4.33147674]
[1729852151491,7.98896238,173.33,173.3,1.44417674]